fUSD/lending_fUSD_20240523
["ID","MTS","AMOUNT","RATE_DAILY","PERIOD"]
[327760530,1716441031728,-185.30785576,0.0001299,2]
[327760531,1716441031737,-151.21,0.0001299,2]
[327760532,1716441031746,-151.21,0.0001299,2]
[327760533,1716441031755,-96.52334323,0.0001299,2]
[327760534,1716441031773,-54.68665677,0.0001299,2]
[327760535,1716441031784,-151.21,0.0001299,2]
[327760536,1716441031794,-151.21,0.0001299,2]
[327760537,1716441031804,-151.21,0.0001299,2]
[327760538,1716441031815,-151.21,0.0001299,2]
[327760539,1716441032058,-151.21,0.0001299,2]
[327760540,1716441032074,-155.0,0.00012996,2]
[327760541,1716441032083,-163.67035244,0.00012996,2]
[327760542,1716441032094,-593.47728527,0.00012997,2]
[327760543,1716441032107,-299.99,0.00012997,2]
[327760544,1716441032119,-257.69726089,0.00012997,2]
[327760545,1716441032136,-355.34,0.00012997,2]
[327760546,1716441032148,-482.99531256,0.00012997,2]
[327760547,1716441032166,-10602.38324138,0.00012997,2]
[327760548,1716441032192,-1578.55756815,0.00012997,2]
[327760549,1716441032203,-3523.28117892,0.00012997,2]
[327760550,1716441032214,-1892.6,0.00012997,2]
[327760552,1716441037932,-57.94845035,0.00012997,2]
[327760553,1716441037942,-32548.01491226,0.00012998,2]
[327760554,1716441037952,-792.35499546,0.00012998,2]
[327760555,1716441037961,-2682.02372459,0.00012999,2]
[327760556,1716441037973,-1191.80578892,0.00012999,2]
[327760557,1716441037983,-512.0,0.00013,2]
[327760558,1716441037992,-120719.31187247,0.00013,2]
[327760565,1716441040401,-360.06,0.00012997,2]
[327760566,1716441040459,-2097.41633505,0.00012997,2]
[327760567,1716441040475,-762.54967009,0.00012997,2]
[327760568,1716441041407,-11250.15946519,0.00012997,2]
[327760569,1716441041418,-893.85434169,0.00012999,2]
[327760570,1716441041429,-6713.78804364,0.00013,2]
[327760583,1716441042685,-2598.29571202,0.00013,2]
[327760590,1716441042734,-7586.06400006,0.00013,2]
[327760606,1716441043273,-1250.0,0.00013,2]
[327760607,1716441043287,-331.37004897,0.00013,2]
[327760608,1716441043301,-1971.40394551,0.00013,2]
[327760616,1716441045881,-753.66266217,0.00012999,2]
[327760617,1716441045893,-4923.18751255,0.00013,2]
[327760659,1716441047004,-2308.78523856,0.00013,2]
[327760660,1716441047016,-1165.14432579,0.00013,2]
[327760662,1716441057630,170.50926165,0.000129,2]
[327760663,1716441059886,719.052314,0.00031,120]
[327760666,1716441072809,726.1238732,0.000129,2]
[327760667,1716441072957,2964.461,0.000129,2]
[327760669,1716441084598,163.8263,0.000129,2]
[327760673,1716441100812,1565.66581161,0.00012738,2]
[327760675,1716441105647,300.91550501,0.00011698,2]
[327760676,1716441109764,400.0,0.000127,4]
[327760677,1716441111928,800.0,0.000128,4]
[327760678,1716441113942,1200.0,0.000129,4]
[327760680,1716441117522,194.76878484,0.000129,2]
[327760681,1716441119357,329.94856387,0.000129,2]
[327760682,1716441122766,2173.7898,0.000129,2]
[327760685,1716441140591,175.54842973,0.000129,2]
[327760687,1716441150920,945.84071253,0.000129,2]
[327760689,1716441153157,2056.23772,0.0001287,2]
[327760690,1716441156402,575.1655,0.000129,2]
[327760692,1716441159804,4965.0896,0.000129,2]
[327760693,1716441162722,344.98903082,0.000129,2]
[327760696,1716441173409,951.6306,0.000129,2]
[327760699,1716441194970,200.0,0.00012797,2]
[327760701,1716441203294,500.0,0.00012797,2]
[327760706,1716441237554,160.3707817,0.000129,2]
[327760708,1716441244796,330.15194708,0.000129,2]
[327760716,1716441300206,159.07569599,0.000129,2]
[327760720,1716441328492,-155.0,0.00012988,2]
[327760721,1716441328515,-259.00448085,0.00012988,2]
[327760722,1716441328538,-1702.0669682,0.00012989,2]
[327760723,1716441328559,-635.1262892,0.00012989,2]
[327760724,1716441328579,-704.6499316,0.00012989,2]
[327760725,1716441328601,-13408.15233015,0.00012991,2]
[327760729,1716441359006,496.10455158,0.000129,2]
[327760731,1716441370348,330.15194706,0.000129,2]
[327760739,1716441425720,210.7626,0.000129,2]
[327760741,1716441432580,1077.2597,0.000129,2]
[327760743,1716441448878,1021.7617,0.000129,2]
[327760751,1716441485669,330.15194706,0.000129,2]
[327760753,1716441501437,1469.96056,0.0001287,2]
[327760768,1716441586725,1565.66581161,0.00012859,2]
[327760771,1716441604898,502.94,0.0001191,2]
[327760791,1716441768877,396.88364128,0.000129,2]
[327760801,1716441849734,1713.53144,0.0001287,2]
[327760807,1716441877902,300.0,0.00012797,2]
[327760808,1716441877930,1500.0,0.00012767,2]
[327760810,1716441887769,150.0,0.00012824,2]
[327760811,1716441887799,150.0,0.00012891,2]
[327760815,1716441911212,150.0,0.0001288,2]
[327760816,1716441911244,150.0,0.00012854,2]
[327760817,1716441911554,150.0,0.00012774,2]
[327760823,1716441937475,1500.0,0.00012919,2]
[327760824,1716441937509,300.0,0.00012836,2]
[327760827,1716441956239,793.69,0.00012581,2]
[327760828,1716441956436,793.69,0.00012615,2]
[327760829,1716441956679,793.69,0.0001265,2]
[327760830,1716441956893,793.69,0.00012684,2]
[327760831,1716441957083,793.69,0.00012719,2]
[327760832,1716441957326,793.69,0.00012753,2]
[327760833,1716441957749,793.69,0.00012788,2]
[327760834,1716441957959,793.69,0.00012822,2]
[327760835,1716441958167,793.69,0.00012857,2]
[327760836,1716441958394,793.69,0.00012891,2]
[327760837,1716441958814,793.69,0.00012926,2]
[327760839,1716441968481,150.0,0.00012771,2]
[327760840,1716441968524,150.0,0.00012849,2]
[327760841,1716441968577,150.0,0.00012858,2]
[327760842,1716441968823,150.0,0.00012797,2]
[327760843,1716441968951,150.0,0.00012873,2]
[327760845,1716441971572,1000.0,0.00012236,2]
[327760849,1716441997690,300.0,0.00012713,2]
[327760850,1716441997719,300.0,0.00012774,2]
[327760851,1716441997748,300.0,0.00012759,2]
[327760852,1716441997784,1500.0,0.00012716,2]
[327760853,1716441997817,1500.0,0.00012736,2]
[327760854,1716441997899,1500.0,0.0001281,2]
[327760855,1716441997972,1500.0,0.00012907,2]
[327760857,1716442007288,150.0,0.00012887,2]
[327760861,1716442028280,150.0,0.00012836,2]
[327760862,1716442028437,150.0,0.00012886,2]
[327760866,1716442033393,400.0,0.000127,4]
[327760867,1716442035657,800.0,0.000128,4]
[327760868,1716442037524,180.24310631,0.000129,2]
[327760869,1716442037677,1200.0,0.000129,4]
[327760874,1716442058315,1500.0,0.00012748,2]
[327760875,1716442058502,1500.0,0.00012712,2]
[327760878,1716442066739,250.0,0.00012204,2]
[327760882,1716442088736,150.0,0.00012728,2]
[327760883,1716442088780,150.0,0.00012708,2]
[327760884,1716442088824,150.0,0.00012838,2]
[327760885,1716442088875,150.0,0.00012764,2]
[327760886,1716442088909,150.0,0.00012864,2]
[327760887,1716442088937,150.0,0.00012874,2]
[327760888,1716442088965,150.0,0.00012739,2]
[327760890,1716442098436,259.00448085,0.00012863,2]
[327760894,1716442114176,200.0,0.00012178,2]
[327760896,1716442125223,500.0,0.00012935,2]
[327760897,1716442129723,7342.38,0.00012178,2]
[327760898,1716442148374,150.0,0.00012857,2]
[327760899,1716442148433,150.0,0.00012886,2]
[327760928,1716442161488,477.79,0.0001026,2]
[327760929,1716442161539,477.79,0.00012524,2]
[327760932,1716442174017,172.93,0.00012178,2]
[327760933,1716442178331,317.50691304,0.000129,2]
[327760934,1716442187832,150.0,0.00012806,2]
[327760935,1716442187900,150.0,0.00012792,2]
[327760937,1716442188235,2063.12,0.00012151,2]
[327760939,1716442196030,150.0,0.00012776,2]
[327760941,1716442198118,1224.96713,0.0001287,2]
[327760947,1716442208298,150.0,0.00012881,2]
[327760973,1716442232011,-259.00448085,0.00012943,2]
[327760974,1716442232020,-300.0,0.00012943,2]
[327760975,1716442232029,-19644.27029752,0.00012944,2]
[327760976,1716442232039,-5075.45416358,0.00012945,2]
[327760977,1716442232048,-150.0,0.00012946,2]
[327760978,1716442232057,-150.0,0.0001295,2]
[327760979,1716442232066,-300.0,0.0001296,2]
[327760980,1716442232075,-793.69,0.0001296,2]
[327760981,1716442232084,-150.0,0.00012962,2]
[327760982,1716442232095,-300.0,0.00012965,2]
[327760983,1716442232104,-2994.0132547,0.00012986,2]
[327760984,1716442232113,-17769.5537889,0.00012986,2]
[327760985,1716442232122,-654.4656944,0.00012989,2]
[327760986,1716442232131,-534.07,0.00012989,2]
[327760987,1716442232140,-499.99,0.0001299,2]
[327760988,1716442232150,-151.21,0.0001299,2]
[327760989,1716442232160,-151.21,0.0001299,2]
[327760990,1716442232170,-151.21,0.0001299,2]
[327760991,1716442232179,-151.21,0.0001299,2]
[327760992,1716442232188,-151.21,0.0001299,2]
[327760993,1716442232198,-151.21,0.0001299,2]
[327760995,1716442232207,-793.69,0.00012995,2]
[327760997,1716442232217,-1000.0,0.00012998,2]
[327760999,1716442232226,-720.16275708,0.00012998,2]
[327761001,1716442232235,-714.964306,0.00012998,2]
[327761003,1716442232245,-301.15139776,0.00012998,2]
[327761005,1716442232257,-155.25897632,0.00012998,2]
[327761006,1716442232266,-753.66266217,0.00012999,2]
[327761007,1716442232276,-339399.19882068,0.00013,2]
[327761008,1716442232285,-1000.0,0.00013,2]
[327761009,1716442232294,-20191.79988798,0.00013,2]
[327761010,1716442232330,150.0,0.00012743,2]
[327761016,1716442238418,-193.41469912,0.0001299,2]
[327761018,1716442238428,-502.44177478,0.00012999,2]
[327761019,1716442238438,-1729.15513184,0.00013,2]
[327761020,1716442241643,-334.96118318,0.00012999,2]
[327761021,1716442241653,-3680.03881682,0.00013,2]
[327761034,1716442242917,-29653.31432962,0.00013,2]
[327761035,1716442243312,-5.78434284,0.00013,2]
[327761036,1716442243324,-2686.1764348,0.00013,2]
[327761037,1716442243386,-770.49675375,0.00013,2]
[327761044,1716442246745,-259.00448085,0.00012999,2]
[327761045,1716442246754,-223.30745546,0.00012999,2]
[327761046,1716442246764,-426.97806358,0.00013,2]
[327761047,1716442249450,150.0,0.00012935,2]
[327761048,1716442251372,155.61009004,0.00012237,2]
[327761049,1716442253086,1010.0,0.000129,2]
[327761051,1716442254456,166.12237384,0.00012869,2]
[327761053,1716442257645,13131.5656766,0.00012881,2]
[327761054,1716442268556,150.0,0.00012848,2]
[327761055,1716442268608,150.0,0.00012759,2]
[327761056,1716442268664,150.0,0.00012742,2]
[327761060,1716442297916,300.0,0.00012861,2]
[327761061,1716442297968,303.00416369,0.00012869,2]
[327761062,1716442298051,1000.0,0.000129,2]
[327761063,1716442298202,500.0,0.00012895,2]
[327761067,1716442323369,-300.0,0.000178,6]
[327761076,1716442355085,210.7626,0.000129,2]
[327761078,1716442361409,250.0,0.00012442,2]
[327761080,1716442394862,200.0,0.00012896,2]
[327761081,1716442405816,175.54842973,0.000129,2]
[327761083,1716442419419,2898.5314,0.000129,2]
[327761084,1716442427182,150.0,0.00012453,2]
[327761085,1716442428567,744.17240679,0.000129,2]
[327761086,1716442432575,277.79,0.0001259,2]
[327761087,1716442432789,277.79,0.00012625,2]
[327761088,1716442432996,277.79,0.00012659,2]
[327761089,1716442433199,277.79,0.00012694,2]
[327761090,1716442433410,277.79,0.00012728,2]
[327761091,1716442433624,277.79,0.00012763,2]
[327761092,1716442433823,277.79,0.00012797,2]
[327761093,1716442434034,277.79,0.00012832,2]
[327761094,1716442434247,277.79,0.00012867,2]
[327761095,1716442434478,277.79,0.00012901,2]
[327761096,1716442434688,277.79,0.00012936,2]
[327761098,1716442447767,2712.7051,0.00012842,2]
[327761100,1716442471625,23900.0,0.00012375,2]
[327761102,1716442485650,13513.8437874,0.000129,2]
[327761103,1716442509099,200.0,0.0001234,2]
[327761104,1716442510875,2505.59020916,0.00031,120]
[327761105,1716442548795,250.0,0.0001234,2]
[327761108,1716442653975,553.06,0.00010389,2]
[327761109,1716442654168,553.06,0.00012652,2]
[327761110,1716442656490,753.17,0.00012405,2]
[327761111,1716442701607,2037.68,0.0001234,2]
[327761114,1716442798194,171.47,0.00012336,2]
[327761117,1716442837124,250.0,0.00012335,2]
[327761119,1716442863119,298.11,0.00012335,2]
[327761120,1716442863393,298.11,0.00012339,2]
[327761121,1716442863617,298.11,0.00012342,2]
[327761122,1716442863826,298.11,0.00012345,2]
[327761123,1716442864056,298.11,0.00012348,2]
[327761124,1716442864459,298.11,0.00012352,2]
[327761125,1716442864930,298.11,0.00012355,2]
[327761126,1716442865168,298.11,0.00012358,2]
[327761127,1716442865586,298.11,0.00012361,2]
[327761128,1716442865796,298.11,0.00012365,2]
[327761129,1716442866018,298.11,0.00012368,2]
[327761130,1716442866212,298.11,0.00012371,2]
[327761131,1716442866412,298.11,0.00012374,2]
[327761132,1716442866611,298.11,0.00012378,2]
[327761133,1716442866848,298.11,0.00012381,2]
[327761134,1716442867056,298.11,0.00012384,2]
[327761135,1716442867472,298.11,0.00012387,2]
[327761136,1716442867684,298.11,0.0001239,2]
[327761137,1716442867884,298.11,0.00012394,2]
[327761138,1716442868099,298.11,0.00012397,2]
[327761139,1716442929635,500.0,0.00012296,2]
[327761140,1716442940984,156.25,0.00012388,2]
[327761141,1716442941197,156.25,0.00012431,2]
[327761142,1716442941433,156.25,0.00012474,2]
[327761143,1716442941636,156.25,0.00012517,2]
[327761144,1716442941998,156.25,0.0001256,2]
[327761145,1716442942207,156.25,0.00012603,2]
[327761146,1716442942432,156.25,0.00012647,2]
[327761147,1716442942961,156.25,0.0001269,2]
[327761148,1716442943041,156.25,0.00012733,2]
[327761149,1716442943094,156.25,0.00012776,2]
[327761150,1716443036359,840.0,0.00012385,2]
[327761151,1716443073302,10047.37,0.00012385,2]
[327761158,1716443224914,200.0,0.000127,4]
[327761159,1716443227596,500.0,0.000128,4]
[327761163,1716443233555,1358.12,0.00012324,2]
[327761173,1716443274317,250.0,0.00012324,2]
[327761174,1716443312838,250.0,0.00012286,2]
[327761176,1716443351231,497.75,0.00010368,2]
[327761177,1716443351459,497.75,0.00012632,2]
[327761238,1716443417436,172.93,0.00012282,2]
[327761239,1716443419396,156.25,0.00012456,2]
[327761240,1716443419607,156.25,0.00012585,2]
[327761241,1716443419837,156.25,0.00012715,2]
[327761258,1716443432262,-259.00448085,0.00012818,2]
[327761259,1716443432272,-156.25,0.00012845,2]
[327761260,1716443432284,-2250.0,0.00012869,2]
[327761261,1716443432295,-1495.30711,0.0001287,2]
[327761262,1716443432306,-200.0,0.00012887,2]
[327761263,1716443432315,-17591.70476061,0.00012888,2]
[327761264,1716443432324,-1000.0,0.00012897,2]
[327761265,1716443432333,-1000.0,0.00012897,2]
[327761266,1716443432343,-1008.02014055,0.00012897,2]
[327761267,1716443432353,-2834.35077804,0.00012897,2]
[327761268,1716443432364,-41653.36272995,0.00012898,2]
[327761269,1716443432377,-716.59388063,0.00012898,2]
[327761291,1716443432712,-1071.49815347,0.00012898,2]
[327761293,1716443432721,-499.99,0.00012898,2]
[327761295,1716443432731,-1085.59216003,0.00012899,2]
[327761298,1716443432742,-733.53808883,0.00012899,2]
[327761301,1716443432762,-444.63344884,0.00012899,2]
[327761302,1716443432773,-499.2013708,0.00012899,2]
[327761318,1716443438171,-400.0,0.00012899,2]
[327761319,1716443438183,-778.69279949,0.00012899,2]
[327761320,1716443438194,-400.0,0.00012899,2]
[327761321,1716443438375,-264.24,0.00012899,2]
[327761322,1716443438387,-29358.98638352,0.00012899,2]
[327761323,1716443438397,-34544.7874126,0.000129,2]
[327761324,1716443438407,-832.3116,0.000129,2]
[327761325,1716443438416,-417.2099,0.000129,2]
[327761326,1716443438425,-1638.28728518,0.000129,2]
[327761327,1716443438435,-800.0,0.000129,4]
[327761328,1716443438444,-4562.56429747,0.000129,2]
[327761351,1716443440850,-357.54843519,0.000129,2]
[327761354,1716443440862,-528.18244504,0.000129,2]
[327761363,1716443440949,-358.58063933,0.000129,2]
[327761374,1716443441661,-15.81499999,0.000129,2]
[327761375,1716443441672,-377.2800005,0.000129,2]
[327761422,1716443443322,-1104.65412252,0.000129,2]
[327761424,1716443443335,-3073.34295996,0.000129,2]
[327761426,1716443443345,-275.65687269,0.000129,2]
[327761428,1716443443356,-285.11291287,0.000129,2]
[327761430,1716443443367,-156.25,0.00012975,2]
[327761432,1716443443377,-188.92317477,0.0001299,2]
[327761434,1716443443388,-151.21,0.0001299,2]
[327761436,1716443443399,-151.21,0.0001299,2]
[327761437,1716443443410,-151.21,0.0001299,2]
[327761438,1716443443420,-151.21,0.0001299,2]
[327761439,1716443443431,-151.21,0.0001299,2]
[327761440,1716443443440,-151.21,0.0001299,2]
[327761441,1716443443450,-625.94272733,0.00012998,2]
[327761442,1716443443460,-155.22819894,0.00012998,2]
[327761443,1716443443469,-400.15371302,0.00012999,2]
[327761444,1716443443530,-508.10374192,0.00012999,2]
[327761445,1716443443614,-191.32254506,0.00012999,2]
[327761446,1716443443623,-19654.57464597,0.00012999,2]
[327761447,1716443443633,-150.99,0.00012999,2]
[327761448,1716443443642,-150.01,0.00012999,2]
[327761449,1716443443651,-9506.41713859,0.00013,2]
[327761454,1716443446236,-1500.0,0.00012899,2]
[327761455,1716443446247,-296.60491091,0.00012999,2]
[327761456,1716443446256,-4608.10508909,0.00013,2]
[327761458,1716443447076,-2720.46188492,0.00013,2]
[327761468,1716443558655,1386.6682,0.000128,2]
[327761470,1716443568621,150.0,0.00012749,2]
[327761471,1716443569139,150.0,0.00012761,2]
[327761492,1716443804460,250.0,0.00012387,2]
[327761493,1716443896724,157.052315,0.00031,120]
[327761494,1716443897720,157.052315,0.00031,120]
[327761495,1716443898077,157.052315,0.00031,120]
[327761496,1716443898415,157.052315,0.00031,120]
[327761497,1716443898705,157.052315,0.00031,120]
[327761498,1716443899514,157.052315,0.00031,120]
[327761499,1716443899615,157.052315,0.00031,120]
[327761500,1716443899964,157.052315,0.00031,120]
[327761501,1716443900431,157.052315,0.00031,120]
[327761502,1716443905910,157.052315,0.00031,120]
[327761503,1716443906260,157.052315,0.00031,120]
[327761504,1716443906584,157.052315,0.00031,120]
[327761505,1716443906946,157.052315,0.00031,120]
[327761506,1716443907184,157.052315,0.00031,120]
[327761507,1716443907507,157.052315,0.00031,120]
[327761508,1716443907806,157.052315,0.00031,120]
[327761509,1716443911784,157.052315,0.00031,120]
[327761510,1716443926842,180.052315,0.00031,120]
[327761511,1716443934724,496.54,0.00011187,2]
[327761512,1716443978966,1500.0,0.00012132,2]
[327761513,1716443979315,1500.0,0.00012745,2]
[327761514,1716444122906,1000.0,0.00012387,2]
[327761515,1716444145738,30000.0,0.00012,2]
[327761516,1716444155428,30000.0,0.00012,2]
[327761517,1716444164438,30000.0,0.00012,2]
[327761518,1716444170936,27403.61424357,0.00012,2]
[327761519,1716444249599,250.0,0.00012539,2]
[327761520,1716444344692,1454.18,0.0001254,2]
[327761521,1716444384796,156.25,0.00012625,2]
[327761522,1716444397928,171.47,0.00012562,2]
[327761523,1716444422099,471.71,0.00010586,2]
[327761531,1716444513609,1000.0,0.00025,30]
[327761865,1716444624164,1000.0,0.00031,120]
[327761866,1716444632354,-259.00448085,0.00012843,2]
[327761869,1716444632364,-686.02523428,0.00012844,2]
[327761877,1716444632467,-563.97476572,0.00012844,2]
[327761878,1716444632477,-471.71,0.0001285,2]
[327761879,1716444632487,-1020.80594,0.0001287,2]
[327761880,1716444632497,-1779.84226468,0.00012882,2]
[327761881,1716444632587,-444.06,0.00012882,2]
[327761882,1716444632606,-7122.68945513,0.00012882,2]
[327761883,1716444632692,-1346.78709982,0.00012882,2]
[327761884,1716444632799,-318.64482262,0.00012882,2]
[327761885,1716444632811,-374.10436896,0.00012882,2]
[327761902,1716444642678,-8258.14228631,0.00012882,2]
[327761903,1716444642687,-1048.25040954,0.00012883,2]
[327761904,1716444642698,-605.90592332,0.00012883,2]
[327761905,1716444642710,-1759.73775912,0.00012883,2]
[327761907,1716444642720,-3055.224914,0.00012885,2]
[327761909,1716444642729,-168.005851,0.00012896,2]
[327761911,1716444642739,-574.57290546,0.00012898,7]
[327761912,1716444642748,-176.06765336,0.000129,2]
[327761913,1716444642757,-696.50364197,0.000129,2]
[327761915,1716444642766,-1000.0,0.000129,2]
[327761916,1716444642775,-228.09033028,0.000129,2]
[327761918,1716444642785,-186.88590942,0.000129,2]
[327761920,1716444642794,-2500.0,0.000129,2]
[327761921,1716444642803,-88758.19886393,0.000129,2]
[327761957,1716444643797,-136070.09241154,0.000129,2]
[327761958,1716444643914,-758.89488042,0.000129,2]
[327761960,1716444644584,-340.81796251,0.00012899,2]
[327761962,1716444644594,-7.63534245,0.000129,2]
[327761963,1716444644607,-19405.17850166,0.000129,2]
[327761964,1716444644616,-1000.0,0.000129,2]
[327761965,1716444644625,-1228.17,0.000129,2]
[327761966,1716444644634,-1000.0,0.000129,2]
[327761967,1716444644643,-800.0,0.00012986,2]
[327761968,1716444644652,-191.33,0.00012986,2]
[327761969,1716444644661,-199.14019614,0.0001299,2]
[327761970,1716444644670,-199.14019614,0.0001299,2]
[327761971,1716444644680,-151.21,0.0001299,2]
[327761972,1716444644689,-151.21,0.0001299,2]
[327761973,1716444644698,-151.21,0.0001299,2]
[327761974,1716444644707,-151.21,0.0001299,2]
[327761975,1716444644716,-151.21,0.0001299,2]
[327761976,1716444644725,-1004.34760422,0.00012998,2]
[327761977,1716444644734,-792.50738408,0.00012998,2]
[327761978,1716444644744,-1000.0,0.00012998,2]
[327761979,1716444644753,-1000.0,0.00012999,2]
[327761980,1716444644763,-1000.0,0.00012999,2]
[327761983,1716444644772,-150.01,0.00012999,2]
[327761985,1716444644782,-1138.1,0.00012999,2]
[327761988,1716444644792,-4829.65,0.00012999,2]
[327761992,1716444644803,-12868.48621419,0.00013,2]
[327761997,1716444644817,-872436.70820829,0.00013,2]
[327762000,1716444644826,-279126.55369139,0.00013,2]
[327762151,1716444646417,-884.55817,0.00013,2]
[327762182,1716444646703,-10739.69272619,0.00013,2]
[327762943,1716444684717,1068.6353,0.000128,2]
[327762944,1716444726242,7159.5639,0.000128,2]
[327762946,1716444806009,849.5332,0.000128,2]
[327762947,1716444819418,177.55,0.00012547,2]
[327762948,1716444830492,500.0,0.000128,2]
[327762949,1716444837396,1228.17,0.000128,2]
[327762950,1716444967308,553.43,0.00012473,2]
[327762951,1716444982829,500.0,0.000128,2]
[327762952,1716445049581,368.4253,0.000128,2]
[327762953,1716445054619,478816.98779578,0.000128,2]
[327762954,1716445151889,187.83,0.00012763,2]
[327762955,1716445183462,3079.24,0.00012763,2]
[327762956,1716445205457,250.0,0.00012771,2]
[327762957,1716445220265,7521.14051331,0.00012763,2]
[327762958,1716445230185,21527.33,0.00012665,2]
[327762959,1716445234268,7526.14056399,0.00012763,2]
[327762960,1716445241795,150.0,0.00012665,2]
[327762962,1716445431562,155.0,0.00012665,2]
[327762963,1716445442308,1101.24,0.0001276,2]
[327762964,1716445447541,253.76319026,0.00012665,2]
[327762965,1716445471008,525.75,0.00010847,2]
[327762966,1716445517131,161.14,0.00012713,2]
[327762967,1716445517529,161.14,0.00012721,2]
[327762968,1716445518066,161.14,0.00012729,2]
[327762969,1716445518126,161.14,0.00012737,2]
[327762970,1716445518192,161.14,0.00012745,2]
[327762971,1716445518360,161.14,0.00012753,2]
[327762972,1716445518564,161.14,0.00012761,2]
[327762973,1716445518826,161.14,0.00012769,2]
[327762974,1716445519045,161.14,0.00012777,2]
[327762983,1716445739628,250.0,0.00012681,2]
[327763000,1716445831735,-651.25,0.00012798,2]
[327763001,1716445831746,-364.48178666,0.00012799,2]
[327763002,1716445832062,-635.51821334,0.00012799,2]
[327763003,1716445832072,-473.37907152,0.000128,2]
[327763018,1716445838719,-382.59431954,0.000128,2]
[327763019,1716445838803,-953.6646,0.000128,2]
[327763080,1716445842703,-798.704107,0.000128,2]
[327763081,1716445842715,-696.02829995,0.000128,2]
[327763084,1716445843383,-3050.0,0.000128,2]
[327763085,1716445843396,-498.7999998,0.000128,2]
[327763086,1716445843407,-4650.0,0.000128,2]
[327763087,1716445843612,-1573.58796512,0.000128,2]
[327763088,1716445843736,-3558.45,0.000128,2]
[327763107,1716445845818,-4871.44945435,0.000128,2]
[327763108,1716445861404,8735.89126676,0.0001268,2]
[327763109,1716445931627,843.7,0.00012723,2]
[327763110,1716445975201,44058.21488382,0.0001268,2]
[327763111,1716445977682,171.21,0.00012778,2]
[327763112,1716445981075,621.86,0.0001086,2]
[327763114,1716446099196,2500.0,0.000127,2]
[327763115,1716446136380,245000.0,0.000127,2]
[327763116,1716446208712,1246.08926,0.0001277,2]
[327763120,1716446238303,250.0,0.00012428,2]
[327763121,1716446248808,1000.0,0.000127,2]
[327763122,1716446263765,39198.5375,0.000127,2]
[327763123,1716446288539,100000.0,0.000127,2]
[327763124,1716446315510,1000.0,0.000127,2]
[327763125,1716446317491,245000.0,0.000127,2]
[327763126,1716446340070,2500.0,0.000127,2]
[327763129,1716446399746,39198.5375,0.000127,2]
[327763130,1716446447531,100000.0,0.000127,2]
[327763131,1716446456859,2012.94620696,0.00012,2]
[327763132,1716446462094,562.13,0.00012512,2]
[327763133,1716446483716,170.95,0.00012512,2]
[327763134,1716446488032,1000.0,0.000127,2]
[327763135,1716446491377,9585.5583,0.000127,2]